bitfinex/quotes_ETHUSD_20250406
["timestamp","ask_amount","ask_price","bid_price","bid_amount"]
[1743913129389,4.23585637,1808.4,1808.2,4.91974324]
[1743913130790,4.23585637,1808.4,1808.2,1.04860324]
[1743913130990,4.23585637,1808.4,1808.2,0.17554658]
[1743913134341,4.23585637,1808.4,1808.2,4.04676658]
[1743913137837,4.23585637,1808.4,1808.2,0.17554658]
[1743913138534,4.23585637,1808.4,1808.2,4.04673658]
[1743913143752,2.54035284,1808.3,1808.2,4.04673658]
[1743913144148,2.54035284,1808.3,1808.2,0.17554658]
[1743913144827,2.54035284,1808.3,1808.0,7.74319]
[1743913145153,2.54035284,1808.3,1808.1,4.04583851]
[1743913147118,2.54035284,1808.3,1808.1,4.04576851]
[1743913147514,4.2849985,1808.6,1808.4,3.87064]
[1743913147515,0.4145885,1808.6,1808.4,3.87064]
[1743913147764,2.54035284,1808.5,1808.4,3.87064]
[1743913148052,8.50447556,1808.7,1808.6,3.87039]
[1743913148223,6.54035284,1808.7,1808.6,3.87039]
[1743913148426,2.54035284,1808.7,1808.6,3.87039]
[1743913148638,2.54035284,1808.7,1808.6,4.0448953]
[1743913149044,2.54035284,1808.7,1808.6,0.1745053]
[1743913149818,4.23238252,1808.7,1808.6,0.1745053]
[1743913150549,4.23238252,1808.7,1808.6,4.0448953]
[1743913151654,4.23238252,1808.7,1808.6,0.1745053]
[1743913155239,4.62896,1808.8,1808.4,3.87077]
[1743913155480,5.96412272,1809.0,1808.4,3.87077]
[1743913155481,6.72302272,1809.0,1808.8,3.86987]
[1743913155700,6.72302272,1809.0,1808.7,3.87]
[1743913155701,4.23238252,1808.9,1808.7,3.87]
[1743913155833,4.23238252,1808.9,1808.5,4.6904]
[1743913156036,4.99128252,1808.7,1808.4,4.69062]
[1743913156362,4.23238252,1808.5,1808.4,3.87082]
[1743913162879,4.23238252,1808.5,1808.3,8.98889]
[1743913163088,5.04818252,1808.5,1808.3,3.87089]
[1743913163379,4.23238252,1808.5,1808.3,3.87089]
[1743913164417,4.23238252,1808.5,1808.3,7.74178]
[1743913164542,4.23238252,1808.5,1808.3,3.87089]
[1743913165152,4.23238252,1808.5,1808.3,7.74184]
[1743913166381,4.23238252,1808.5,1808.3,3.87089]
[1743913169655,2.53997766,1808.4,1808.3,3.87089]
[1743913171516,2.53997766,1808.4,1808.3,4.04424749]
[1743913176417,2.53997766,1808.4,1808.3,4.21722273]
[1743913176722,2.53997766,1808.4,1808.3,4.04424749]
[1743913177520,2.53997766,1808.4,1808.3,4.21722236]
[1743913183529,2.53997766,1808.4,1808.3,0.34633236]
[1743913184934,2.53997766,1808.4,1808.3,0.17335749]
[1743913185229,3.32077766,1808.4,1808.3,0.17335749]
[1743913185530,4.03992143,1808.4,1808.1,7.74283]
[1743913185731,1.49994377,1808.4,1808.3,0.15927658]
[1743913186033,4.03992143,1808.4,1808.1,3.87134]
[1743913186238,4.03992143,1808.4,1808.3,0.15927658]
[1743913186432,4.03992143,1808.4,1808.2,0.17298889]
[1743913186634,4.03992143,1808.4,1808.3,0.15927658]
[1743913186950,4.03992143,1808.4,1808.1,3.87134]
[1743913187136,4.03992143,1808.4,1808.3,0.15927658]
[1743913187326,4.03992143,1808.4,1808.1,3.87134]
[1743913187520,4.03992143,1808.4,1808.3,0.15927658]
[1743913187726,4.03992143,1808.4,1808.1,3.87134]
[1743913187942,4.03992143,1808.4,1808.3,0.15927658]
[1743913188105,4.03992143,1808.4,1808.1,3.87134]
[1743913188419,4.03992143,1808.4,1808.3,0.15927658]
[1743913188619,4.44949842,1808.4,1808.2,3.87125]
[1743913188824,4.44949842,1808.4,1808.3,0.15927658]
[1743913189337,4.44949842,1808.4,1808.1,3.87134]
[1743913189530,4.44949842,1808.4,1808.3,0.15927658]
[1743913189727,4.44949842,1808.4,1808.1,3.87134]
[1743913189936,4.44949842,1808.4,1808.3,0.15927658]
[1743913190134,4.44949842,1808.4,1808.1,3.87134]
[1743913190446,4.44949842,1808.4,1808.3,0.15927658]
[1743913190651,4.44949842,1808.4,1808.1,3.87134]
[1743913190812,4.44949842,1808.4,1808.3,0.15927658]
[1743913191013,4.44949842,1808.4,1808.1,3.87134]
[1743913191229,4.44949842,1808.4,1808.3,0.15927658]
[1743913191424,4.44949842,1808.4,1808.1,3.87134]
[1743913191629,4.44949842,1808.4,1808.3,0.15927658]
[1743913191829,8.32031842,1808.4,1808.1,3.87134]
[1743913192434,8.32031842,1808.4,1808.2,0.15927658]
[1743913193650,10.86029608,1808.4,1808.2,0.15927658]
[1743913193953,1.08602961,1808.3,1808.1,0.17299557]
[1743913194250,2.53997766,1808.2,1808.0,13.68616]
[1743913195450,2.53997766,1808.2,1808.0,9.81455]
[1743913195762,2.53997766,1808.2,1808.0,13.68608]
[1743913195977,2.53997766,1808.2,1808.1,0.17299504]
[1743913196458,2.53997766,1808.2,1808.0,13.68608]
[1743913196755,2.53997766,1808.2,1808.0,9.81453]
[1743913198544,2.53997766,1808.3,1808.1,7.74283]
[1743913198857,2.53997766,1808.3,1808.1,3.87137]
[1743913200660,0.7532,1808.2,1808.0,3.87166]
[1743913200868,2.53997766,1808.1,1807.9,9.76177]
[1743913201168,2.53997766,1808.1,1807.9,3.87176]
[1743913201366,10.49395543,1808.1,1808.0,0.17300363]
[1743913201735,10.49395543,1808.1,1808.0,0.1599685]
[1743913201935,10.49395543,1808.1,1807.7,0.17300363]
[1743913201936,3.87204,1807.9,1807.7,0.17300363]
[1743913202131,2.53997766,1807.8,1807.7,0.17300363]
[1743913202330,2.53997766,1807.8,1807.5,8.98775]
[1743913202554,2.53997766,1807.6,1807.5,8.98775]
[1743913209676,0.7532,1807.8,1807.6,3.87253]
[1743913209977,2.53997766,1807.7,1807.6,3.87253]
[1743913210279,2.53997766,1808.1,1807.9,3.87181]
[1743913210449,2.53997766,1808.1,1808.0,3.87168]
[1743913210652,6.53997766,1808.1,1808.0,3.87168]
[1743913210973,2.53997766,1808.1,1808.0,4.63538]
[1743913211175,2.53997766,1808.3,1808.0,0.7637]
[1743913211375,2.53997766,1808.3,1808.0,1.66972339]
[1743913211575,2.53997766,1808.3,1808.2,3.87125]
[1743913211782,0.768,1808.6,1808.2,3.87125]
[1743913211783,4.23339023,1808.5,1808.2,3.87125]
[1743913212005,4.23339023,1808.5,1808.0,4.722379]
[1743913212145,4.23339023,1808.5,1808.4,3.87082]
[1743913212340,8.23339023,1808.5,1808.4,3.87082]
[1743913212879,4.23339023,1808.5,1808.4,3.87082]
[1743913216594,4.23339023,1808.5,1808.4,4.03283833]
[1743913217285,5.96412272,1808.7,1808.5,3.87048]
[1743913217286,4.23339023,1808.7,1808.5,3.87048]
[1743913217855,4.23339023,1808.7,1808.6,0.16201833]
[1743913218056,8.10357023,1808.7,1808.6,0.16201833]
[1743913218456,8.10357023,1808.7,1808.3,9.75672]
[1743913218700,4.23339023,1808.7,1808.6,0.16201833]
[1743913218866,4.23339023,1808.7,1808.4,3.87081]
[1743913219359,4.23339023,1808.7,1808.5,0.16201833]
[1743913220800,4.23339023,1808.7,1808.5,4.03251833]
[1743913224194,4.23339023,1808.7,1808.5,7.90298833]
[1743913224389,4.23339023,1808.7,1808.5,4.03248833]
[1743913231507,4.23339023,1808.7,1808.5,4.20301562]
[1743913231696,2.53956304,1808.6,1808.5,4.20301562]
[1743913233076,2.53956304,1808.6,1808.5,0.33254562]
[1743913239131,6.40995304,1808.6,1808.5,0.33254562]
[1743913239331,7.80502934,1808.6,1808.5,0.33254562]
[1743913239508,7.80502934,1808.6,1808.2,3.87123]
[1743913239815,2.53956304,1808.4,1808.2,3.87123]
[1743913239989,2.53956304,1808.4,1808.3,0.31799725]
[1743913240389,2.53956304,1808.4,1808.3,4.18902725]
[1743913240601,2.53956304,1808.6,1808.5,3.87061]
[1743913242823,2.53956304,1808.6,1808.5,4.0435722]
[1743913243031,2.53956304,1808.6,1808.5,4.36180896]
[1743913245191,3.0,1808.9,1808.6,3.87022]
[1743913245388,6.78802272,1809.0,1808.7,3.8701]
[1743913245587,2.53956304,1808.9,1808.8,4.18811676]
[1743913246526,2.53956304,1808.9,1808.8,0.31823676]
[1743913247726,3.86998,1808.8,1808.4,9.78482]
[1743913247934,2.53956304,1808.5,1808.4,9.78482]
[1743913248634,2.53956304,1808.5,1808.4,9.9577852]
[1743913251700,4.23271773,1808.7,1808.4,9.9577852]
[1743913252200,8.10289773,1808.7,1808.4,9.78482]
[1743913252530,8.10289773,1808.7,1808.4,5.12]
[1743913253538,8.91739773,1808.7,1808.4,5.12]
[1743913255339,8.91789773,1808.5,1808.1,3.87145]
[1743913255547,1.27873777,1808.7,1807.9,3.87188]
[1743913255548,8.10380773,1808.3,1807.9,3.87188]
[1743913256227,4.23271773,1808.1,1808.0,0.17300656]
[1743913256942,4.23271773,1808.1,1807.9,0.17300656]
[1743913257308,4.23271773,1808.1,1807.8,4.66609]
[1743913257638,4.23271773,1808.1,1807.8,3.87209]
[1743913257843,9.3832985,1808.1,1807.7,3.8723]
[1743913258209,0.8145,1808.0,1807.7,3.8723]
[1743913260214,4.23271773,1808.1,1807.8,3.87205]
[1743913261446,4.23271773,1808.1,1807.9,0.31940792]
[1743913261640,7.2788946,1808.3,1808.0,3.87158]
[1743913261641,5.44617233,1808.3,1808.0,3.87158]
[1743913261843,6.37787956,1808.3,1808.0,3.87158]
[1743913262012,4.23271773,1808.3,1808.0,7.7431]
[1743913262345,4.23271773,1808.3,1808.1,4.19085792]
[1743913262543,4.23271773,1808.3,1808.1,8.06217792]
[1743913262739,4.23271773,1808.3,1808.1,4.19072792]
[1743913263149,5.03831773,1808.5,1808.1,4.19072792]
[1743913263309,4.23271773,1808.6,1808.4,3.87072]
[1743913263642,4.23271773,1808.8,1808.5,8.51882]
[1743913263809,4.23271773,1808.8,1808.6,0.31999345]
[1743913268761,8.10271773,1808.8,1808.6,0.31999345]
[1743913268947,0.81027177,1808.7,1808.6,0.31999345]
[1743913269131,0.81027177,1808.7,1808.4,9.01681]
[1743913269331,8.10271773,1808.8,1808.6,0.31999345]
[1743913269655,11.10271773,1808.8,1808.7,0.31999345]
[1743913269856,11.10271773,1808.8,1808.3,0.754]
[1743913270051,3.87023,1808.7,1808.4,0.31999345]
[1743913270250,3.87023,1808.7,1808.3,4.62501]
[1743913270453,11.10271773,1808.8,1808.4,4.19080345]
[1743913272965,3.87018,1808.7,1808.4,4.19080345]
[1743913273764,5.06531773,1808.6,1808.4,0.31999345]
[1743913274288,5.06531773,1808.6,1808.3,3.87091]
[1743913274443,8.93570773,1808.6,1808.2,12.88948]
[1743913274763,8.93570773,1808.6,1808.3,0.31866262]
[1743913278360,12.80627773,1808.6,1808.3,0.31866262]
[1743913279168,3.87062,1808.5,1808.3,0.31866262]
[1743913280465,5.06531773,1808.6,1808.3,0.31866262]
[1743913280764,5.06531773,1808.6,1808.3,4.18953262]
[1743913280969,4.23271773,1808.6,1808.4,8.57233]
[1743913281129,7.23271773,1808.8,1808.5,3.87061]
[1743913281463,4.23271773,1808.8,1808.6,0.31866262]
[1743913284655,4.23271773,1808.8,1808.6,4.18902262]
[1743913284882,4.23271773,1808.8,1808.7,3.87018]
[1743913285082,4.23271773,1808.8,1808.7,4.96686999]
[1743913285897,4.23271773,1808.8,1808.7,1.09668999]
[1743913287487,4.23271773,1808.8,1808.7,4.96686999]
[1743913289192,4.23271773,1808.8,1808.7,1.09668999]
[1743913289360,4.23271773,1808.8,1808.7,0.31828999]
[1743913289753,10.90560605,1809.5,1808.8,3.86996]
[1743913289956,4.23271773,1809.4,1809.0,3.86945]
[1743913290151,3.0,1809.3,1809.1,3.86925]
[1743913290372,4.0,1809.2,1809.1,4.18581055]
[1743913290964,4.23271773,1809.4,1809.2,7.73808]
[1743913291166,5.96412272,1809.5,1809.2,8.51639]
[1743913291461,5.96412272,1809.5,1809.3,4.18533055]
[1743913291869,4.23271773,1809.6,1809.4,3.86868]
[1743913292052,10.19684045,1809.8,1809.5,4.18447203]
[1743913292253,10.19684045,1809.8,1809.6,3.86817]
[1743913292452,4.0,1809.7,1809.6,3.86817]
[1743913293673,0.1,1809.9,1809.8,3.86783]
[1743913295878,0.1,1809.9,1809.7,3.92324166]
[1743913296084,0.1,1809.9,1809.7,3.86799]
[1743913296284,0.1,1809.9,1809.8,0.386799]
[1743913300553,0.1,1809.9,1809.8,4.254629]
[1743913301081,0.1,1809.9,1809.8,0.386799]
[1743913306074,0.1,1809.9,1809.8,4.254629]
[1743913306602,0.1,1809.9,1809.8,4.56581897]
[1743913307191,0.1,1809.9,1809.8,5.37901897]
[1743913319273,0.1,1809.9,1809.8,0.69798897]
[1743913320489,4.33271773,1809.9,1809.8,0.31118997]
[1743913320687,4.67833,1809.8,1809.4,4.67907]
[1743913320897,4.67833,1809.8,1809.5,0.30927694]
[1743913321479,0.8105,1809.8,1809.5,4.17773694]
[1743913322080,0.8105,1809.8,1809.5,5.49645763]
[1743913322699,0.8105,1809.8,1809.5,1.62799763]
[1743913322904,4.67838,1809.8,1809.5,0.30927694]
[1743913323214,3.86806,1809.7,1809.4,0.17286006]
[1743913323413,0.8105,1809.8,1809.6,4.17855303]
[1743913323579,0.8105,1809.8,1809.6,3.86824]
[1743913323785,0.8105,1809.8,1809.7,0.31044588]
[1743913323993,0.1,1809.9,1809.7,0.31044588]
[1743913324192,0.1,1809.9,1809.7,3.86794]
[1743913324398,0.1,1809.9,1809.8,0.31044588]
[1743913324897,0.1,1809.9,1809.6,3.86816]
[1743913325080,0.1,1809.9,1809.7,0.31044588]
[1743913325285,0.1,1809.9,1809.6,4.641822]
[1743913325486,0.1,1809.9,1809.7,0.31044588]
[1743913325687,0.1,1809.9,1809.6,4.641822]
[1743913325920,0.1,1809.9,1809.7,0.31044588]
[1743913326091,0.1,1809.9,1809.6,3.86816]
[1743913326299,0.1,1809.9,1809.7,0.31044588]
[1743913326508,0.1,1809.9,1809.6,3.86816]
[1743913326711,0.1,1809.9,1809.7,0.31044588]
[1743913326899,0.1,1809.9,1809.6,3.86816]
[1743913327114,0.1,1809.9,1809.7,0.31044588]
[1743913327300,0.1,1809.9,1809.6,3.86816]
[1743913327622,0.1,1809.9,1809.7,0.31044588]
[1743913327987,0.1,1809.9,1809.6,3.86816]
[1743913328220,0.1,1809.9,1809.8,0.31044588]
[1743913328721,0.1,1809.9,1809.6,3.86816]
[1743913328927,0.1,1809.9,1809.7,0.31044588]
[1743913329218,0.1,1809.9,1809.6,3.86816]
[1743913329417,0.1,1809.9,1809.8,0.31044588]
[1743913329630,0.1,1809.9,1809.6,3.86816]
[1743913329818,0.1,1809.9,1809.8,0.31044588]
[1743913329995,0.1,1809.9,1809.6,3.86816]
[1743913330198,0.1,1809.9,1809.8,0.31044588]
[1743913330719,0.1,1809.9,1809.7,3.86788]
[1743913330920,0.1,1809.9,1809.8,0.31044588]
[1743913333450,0.1,1809.9,1809.8,4.67408847]
[1743913334897,0.1,1809.9,1809.8,4.84691244]
[1743913336903,0.1,1809.9,1809.8,4.67408847]
[1743913337230,0.1,1809.9,1809.8,0.80625847]
[1743913337431,0.1,1809.9,1809.8,4.17827588]
[1743913338300,0.1,1809.9,1809.8,0.31044588]
[1743913339134,0.1,1809.9,1809.8,4.17827588]
[1743913339493,0.1,1809.9,1809.8,0.31044588]
[1743913352044,4.446222,1809.9,1809.8,0.31044588]
[1743913352221,5.254622,1809.9,1809.8,0.31044588]
[1743913352415,3.86785,1809.8,1809.5,3.86834]
[1743913352846,3.86785,1809.8,1809.4,9.00167]
[1743913353350,0.8084,1809.5,1809.2,3.86901]
[1743913355050,3.0,1809.7,1809.4,3.86858]
[1743913355528,3.0,1809.7,1809.5,3.86846]
[1743913357321,5.04111773,1809.8,1809.5,3.86846]
[1743913361252,8.90894773,1809.8,1809.5,3.86846]
[1743913361447,8.90894773,1809.8,1809.4,3.86858]
[1743913361951,4.6374,1809.7,1809.3,3.86888]
[1743913362452,0.7692,1809.7,1809.3,3.86876]
[1743913362620,0.7692,1809.7,1809.4,3.86868]
[1743913366253,0.7692,1809.7,1809.4,7.73726]
[1743913366431,0.7692,1809.7,1809.4,3.86858]
[1743913366637,0.7692,1809.7,1809.5,0.30168908]
[1743913367650,3.30580198,1809.7,1809.5,0.30168908]
[1743913367854,0.7852,1809.8,1809.5,4.17005908]
[1743913368034,3.32180198,1809.8,1809.5,4.17005908]
[1743913370545,7.18965198,1809.8,1809.5,3.86837]
[1743913370751,7.18965198,1809.8,1809.6,0.30219291]
[1743913370951,7.18965198,1809.8,1809.4,4.69758]
[1743913371151,7.18965198,1809.8,1809.5,0.30219291]
[1743913373667,2.53660198,1809.6,1809.5,0.30219291]
[1743913374038,2.53660198,1809.6,1809.3,3.86889]
[1743913374235,2.53660198,1809.6,1809.5,0.30219291]
[1743913374732,2.53660198,1809.6,1809.3,9.02189]
[1743913375064,2.53660198,1809.6,1809.4,4.17086291]
[1743913378867,2.53660198,1809.6,1809.4,0.30219291]
[1743913379163,2.53660198,1809.6,1809.3,9.02184]
[1743913379373,6.40486198,1809.6,1809.4,0.30219291]
[1743913379553,0.7852,1809.5,1809.4,0.30219291]
[1743913379862,4.65367,1809.5,1809.1,3.86919]
[1743913380062,0.7852,1809.5,1809.4,0.30229899]
[1743913380264,0.7852,1809.5,1809.2,4.04191194]
[1743913380865,0.8087,1809.7,1809.3,4.95747161]
[1743913381071,2.53660198,1809.7,1809.5,7.73663]
[1743913381569,2.53660198,1809.7,1809.6,0.30251118]
[1743913382038,9.4094247,1809.9,1809.6,4.17067118]
[1743913384073,9.4094247,1809.9,1809.7,3.868]
[1743913384263,9.4094247,1809.9,1809.6,4.17067118]
[1743913384457,9.4094247,1809.9,1809.6,3.86816]
[1743913384680,9.4094247,1809.9,1809.7,0.30251118]
[1743913384975,9.4094247,1809.9,1809.6,3.86816]
[1743913385175,9.4094247,1809.9,1809.7,0.30251118]
[1743913385355,9.4094247,1809.9,1809.6,3.86816]
[1743913385556,9.4094247,1809.9,1809.7,0.30251118]
[1743913385871,9.4094247,1809.9,1809.6,3.86816]
[1743913386046,12.4094247,1809.9,1809.8,0.30251118]
[1743913386242,12.4094247,1809.9,1809.6,3.86816]
[1743913386443,12.4094247,1809.9,1809.8,0.30251118]
[1743913386670,12.4094247,1809.9,1809.6,3.86816]
[1743913386976,3.86783,1809.8,1809.7,0.30208683]
[1743913387143,6.40443198,1809.8,1809.4,9.82367]
[1743913387343,6.40443198,1809.8,1809.5,0.47494752]
[1743913387675,6.40443198,1809.8,1809.5,0.30208683]
[1743913388038,2.53660198,1809.8,1809.5,4.17047683]
[1743913388288,2.53660198,1809.8,1809.5,8.03879683]
[1743913388471,2.53660198,1809.8,1809.5,9.43817651]
[1743913389074,2.53660198,1809.8,1809.5,5.56978651]
[1743913390480,6.40444198,1809.8,1809.5,4.17040683]
[1743913391059,2.53660198,1809.8,1809.5,4.17040683]
[1743913391261,2.53660198,1809.8,1809.6,3.86821]
[1743913391678,2.53660198,1809.8,1809.5,3.86832]
[1743913392201,2.53660198,1809.8,1809.6,0.30208683]
[1743913396089,6.06412272,1809.9,1809.6,4.17014683]
[1743913396383,6.06412272,1809.9,1809.7,3.86796]
[1743913396603,6.06412272,1809.9,1809.8,0.30190122]
[1743913399572,8.6007247,1809.9,1809.8,0.30190122]
[1743913402393,0.1,1809.9,1809.8,4.16973122]
[1743913403003,0.1,1809.9,1809.8,0.30190122]
[1743913403177,0.1,1809.9,1809.8,0.71888734]
[1743913405277,0.1,1809.9,1809.8,4.58671734]
[1743913406204,0.1,1809.9,1809.8,5.40811734]
[1743913416311,0.1,1809.9,1809.8,10.53811734]
[1743913416814,0.1,1809.9,1809.8,10.71092594]
[1743913418400,0.1,1809.9,1809.8,10.7661686]
[1743913427592,0.1,1809.9,1809.8,10.71092594]
[1743913430030,0.1,1809.9,1809.8,10.76616815]
[1743913430634,0.1,1809.9,1809.8,10.71092594]
[1743913430929,0.1,1809.9,1809.8,10.76616814]
[1743913431291,0.1,1809.9,1809.8,10.71092594]
[1743913436529,0.1,1809.9,1809.8,10.76616508]
[1743913436834,0.1,1809.9,1809.8,13.76616508]
[1743913437025,0.1,1809.9,1809.8,13.71092594]
[1743913437026,1e-05,1809.9,1809.8,13.71092594]
[1743913437203,1e-05,1809.9,1809.8,14.26092594]
[1743913440397,1e-05,1809.9,1809.8,14.26089424]
[1743913446799,1e-05,1809.9,1809.8,20.52089424]
[1743913447005,1e-05,1809.9,1809.8,20.42089424]
[1743913447305,1e-05,1809.9,1809.8,20.52089424]
[1743913449009,1e-05,1809.9,1809.8,20.42089424]
[1743913449211,1e-05,1809.9,1809.8,26.34289424]
[1743913449411,1e-05,1809.9,1809.8,20.52089424]
[1743913450843,1e-05,1809.9,1809.8,20.42089424]
[1743913451442,1e-05,1809.9,1809.8,20.52089424]
[1743913451807,1e-05,1809.9,1809.8,20.42089424]
[1743913452025,1e-05,1809.9,1809.8,20.52089424]
[1743913452636,1e-05,1809.9,1809.8,20.42089424]
[1743913460556,1e-05,1809.9,1809.8,13.91949424]
[1743913460742,1e-05,1809.9,1809.8,19.03149424]
[1743913461314,1e-05,1809.9,1809.8,19.58149424]
[1743913462146,1e-05,1809.9,1809.8,20.37289424]
[1743913462622,1e-05,1809.9,1809.8,14.21289424]
[1743913469056,1e-05,1809.9,1809.8,13.42149424]
[1743913472068,1e-05,1809.9,1809.8,14.18219424]
[1743913478646,1e-05,1809.9,1809.8,39.05519424]
[1743913480276,1e-05,1809.9,1809.8,45.21519424]
[1743913497790,1e-05,1809.9,1809.8,20.34219424]
[1743913500560,1e-05,1809.9,1809.8,19.58149424]
[1743913501587,1e-05,1810.2,1810.1,3.86718]
[1743913501789,1e-05,1810.2,1810.1,7.35000888]
[1743913502001,1e-05,1810.2,1810.1,7.64119617]
[1743913502488,0.1,1810.9,1810.8,3.86569]
[1743913502894,0.1,1810.9,1810.8,4.15687729]
[1743913504478,0.1,1810.9,1810.8,4.32960854]
[1743913504669,0.3821,1810.9,1810.8,4.32960854]
[1743913505599,0.3821,1810.9,1810.8,0.29118729]
[1743913507303,0.6739702,1810.9,1810.8,0.29118729]
[1743913507804,0.3821,1810.9,1810.8,4.15687729]
[1743913508689,0.3821,1810.9,1810.8,4.32960706]
[1743913514595,0.3821,1810.9,1810.8,4.15687729]
[1743913518106,0.3821,1810.9,1810.8,0.29118729]
[1743913518107,3.3821,1810.9,1810.8,0.29118729]
[1743913518300,0.2821,1810.6,1810.2,3.86696]
[1743913518502,0.2821,1810.2,1810.1,3.86717]
[1743913518989,0.2821,1810.2,1810.1,4.03996237]
[1743913520330,0.2821,1810.2,1810.1,3.86717]
[1743913527511,0.2821,1810.5,1810.4,3.86654]
[1743913531529,0.2821,1810.5,1810.4,4.12541958]
[1743913536326,0.2821,1810.6,1810.5,3.86619]
[1743913536532,0.2821,1810.6,1810.5,4.12586341]
[1743913536827,3.0,1810.7,1810.6,3.86612]
[1743913537433,3.0,1810.7,1810.6,4.12579341]
[1743913537826,3.0,1810.7,1810.6,0.25967341]
[1743913539738,5.53360044,1810.7,1810.6,0.25967341]
[1743913541827,2.53360044,1810.7,1810.6,0.25967341]
[1743913542501,3.69368276,1810.7,1810.6,0.25967341]
[1743913542726,3.41158276,1810.7,1810.4,8.97853]
[1743913542916,2.81570044,1810.6,1810.5,0.25895889]
[1743913543121,2.81570044,1810.6,1810.4,12.84494]
[1743913543328,2.81570044,1810.6,1810.5,0.25866781]
[1743913544336,2.81570044,1810.6,1810.5,4.12499781]
[1743913545614,2.53360044,1810.6,1810.5,4.12499781]
[1743913546145,8.77982316,1810.8,1810.7,3.8659]
[1743913546514,8.77982316,1810.8,1810.7,4.12456781]
[1743913547750,2.81570044,1810.8,1810.7,4.12456781]
[1743913547949,2.81570044,1810.8,1810.7,0.25866781]
[1743913549951,2.81570044,1810.8,1810.7,4.12456781]
[1743913550550,2.81570044,1810.8,1810.7,0.25866781]
[1743913551853,2.81570044,1810.8,1810.5,7.73247]
[1743913552030,2.81570044,1810.8,1810.7,0.25866781]
[1743913552229,2.81570044,1810.8,1810.6,3.86611]
[1743913552419,2.81570044,1810.8,1810.7,0.25866781]
[1743913560655,0.1,1810.9,1810.7,0.25866781]
[1743913560838,2.53360044,1810.8,1810.7,0.25866781]
[1743913561376,2.53360044,1810.8,1810.7,4.12456781]
[1743913568161,0.1,1810.9,1810.7,7.99034781]
[1743913568332,2.63360044,1810.9,1810.7,7.99034781]
[1743913571774,2.63360044,1810.9,1810.7,7.99025781]
[1743913572976,2.63360044,1810.9,1810.7,4.12444781]
[1743913573537,2.63360044,1810.9,1810.7,0.25866781]
[1743913574760,3.61169948,1810.9,1810.7,0.25866781]
[1743913577867,3.61169948,1810.9,1810.7,4.12456781]
[1743913578066,2.63360044,1810.9,1810.7,4.12456781]
[1743913578767,2.63360044,1810.9,1810.7,7.99033781]
[1743913581579,2.63360044,1810.9,1810.7,4.12443781]
[1743913582178,2.63360044,1810.9,1810.7,7.99021781]
[1743913582769,2.63360044,1810.9,1810.7,4.12443781]
[1743913583174,2.63360044,1810.9,1810.8,3.86569]
[1743913583351,2.63360044,1810.9,1810.8,4.12406672]
[1743913583548,0.1,1810.9,1810.8,4.12406672]
[1743913583755,0.1,1810.9,1810.8,5.74035039]
[1743913583939,0.1,1810.9,1810.8,5.9130802]
[1743913588258,0.1,1810.9,1810.8,11.0230802]
[1743913595850,0.1,1810.9,1810.8,4.29679653]
[1743913596246,0.1,1810.9,1810.8,5.12399653]
[1743913598975,0.1,1810.9,1810.8,5.17921398]
[1743913600165,0.1,1810.9,1810.8,5.17921068]
[1743913602358,0.1,1810.9,1810.8,5.12399653]
[1743913602559,0.1,1810.9,1810.8,6.53397318]
[1743913603788,0.1,1810.9,1810.8,6.58918735]
[1743913603983,0.1,1810.9,1810.8,6.53397318]
[1743913612192,0.1,1810.9,1810.8,5.76198741]
[1743913612494,0.1,1810.9,1810.8,5.70677318]
[1743913616906,0.1,1810.9,1810.8,6.48217318]
[1743913623418,0.1,1810.9,1810.8,5.70677318]
[1743913626619,0.1,1810.9,1810.8,9.40579653]
[1743913629623,0.1,1810.9,1810.8,9.23306672]
[1743913630098,0.1,1810.9,1810.8,0.25837672]
[1743913633428,0.1,1810.9,1810.8,4.12406672]
[1743913637226,0.3821,1810.9,1810.8,0.25837672]
[1743913637526,4.57995061,1810.9,1810.8,0.25837672]
[1743913637724,13.54407333,1810.9,1810.8,0.25837672]
[1743913637931,0.2821,1810.5,1810.3,5.109]
[1743913638131,2.81570044,1810.5,1810.2,3.86688]
[1743913638497,0.2821,1810.4,1810.2,3.86688]
[1743913641921,0.2821,1810.4,1810.1,7.73436]
[1743913642908,0.2821,1810.4,1810.2,3.86696]
[1743913643114,0.2821,1810.2,1810.0,3.86737]
[1743913644621,0.2821,1810.2,1810.1,3.86718]
[1743913646859,0.2821,1810.2,1810.0,3.86725]
[1743913647616,0.2821,1810.2,1810.0,7.73456]
[1743913648456,0.2821,1810.2,1810.0,3.86725]
[1743913649314,0.2821,1810.2,1810.0,7.73453]
[1743913650148,0.2821,1810.2,1810.0,7.73451]
[1743913650853,0.69174504,1810.4,1809.9,5.11]
[1743913651022,3.69174504,1810.4,1810.2,7.73368]
[1743913651349,3.69174504,1810.4,1810.2,3.86679]
[1743913651842,3.69174504,1810.4,1810.3,0.23902208]
[1743913654325,3.69174504,1810.4,1810.1,3.86718]
[1743913654849,3.69174504,1810.4,1810.2,0.23912796]
[1743913655051,4.70091459,1810.4,1810.1,3.86718]
[1743913655229,3.69174504,1810.4,1810.2,0.23912796]
[1743913655428,3.69174504,1810.4,1810.1,3.86718]
[1743913655749,3.69174504,1810.4,1810.2,0.23912796]
[1743913656050,3.69174504,1810.4,1810.1,3.86718]
[1743913656257,3.69174504,1810.4,1810.2,0.23912796]
[1743913656419,3.69174504,1810.4,1810.1,3.86718]
[1743913656619,3.69174504,1810.4,1810.2,0.23912796]
[1743913656850,3.69174504,1810.4,1810.1,3.86718]
[1743913657149,3.69174504,1810.4,1810.2,0.23912796]
[1743913657348,4.68929632,1810.4,1810.2,0.23912796]
[1743913657522,4.68929632,1810.4,1810.1,3.86718]
[1743913657713,4.68929632,1810.4,1810.3,0.23912796]
[1743913657913,4.68929632,1810.4,1810.1,3.86718]
[1743913658120,3.69174504,1810.4,1810.3,0.23912796]
[1743913658315,3.69174504,1810.4,1810.1,7.73423]
[1743913658530,3.69174504,1810.4,1810.3,0.23912796]
[1743913658742,3.69174504,1810.4,1810.1,7.73423]
[1743913659254,3.69174504,1810.4,1810.2,0.23912796]
[1743913659455,3.69174504,1810.4,1810.1,7.73423]
[1743913659655,3.69174504,1810.4,1810.2,4.10609796]
[1743913662059,3.69174504,1810.4,1810.2,0.23912796]
[1743913662257,3.69174504,1810.4,1810.1,3.86713]
[1743913662490,3.69174504,1810.4,1810.3,0.23891621]